bitfinex/quotes_ETHUSD_20241120
["timestamp","ask_amount","ask_price","bid_price","bid_amount"]
[1732107303146,3.3808891,3090.1,3089.7,0.7696]
[1732107303492,0.54348956,3090.0,3089.7,2.71152]
[1732107303677,0.30194457,3089.9,3089.7,2.71152]
[1732107303858,3.3808891,3090.1,3089.7,4.65341]
[1732107304067,0.54344564,3090.0,3089.7,2.71149]
[1732107304248,3.3808891,3090.2,3089.9,1.94181]
[1732107304451,0.30187419,3090.1,3089.9,1.94181]
[1732107304753,3.3808891,3090.3,3089.9,1.94181]
[1732107304953,0.54336082,3090.2,3089.9,1.94181]
[1732107305151,0.30186712,3090.1,3089.9,1.94181]
[1732107305383,3.3808891,3090.3,3089.9,1.94181]
[1732107305600,3.92415477,3090.2,3089.7,0.7696]
[1732107305799,0.54326567,3090.1,3089.9,1.94175]
[1732107305997,3.3808891,3090.2,3090.0,1.94174]
[1732107306291,0.54328518,3090.1,3090.0,1.94174]
[1732107306458,0.30177886,3090.1,3090.0,2.330089]
[1732107307166,3.3808891,3090.4,3090.0,1.94174]
[1732107307505,1.02594085,3090.3,3090.0,1.94171]
[1732107307794,0.30174601,3090.2,3090.1,1.94164]
[1732107307996,0.48275327,3090.6,3090.1,1.3026]
[1732107308292,0.54309055,3090.5,3090.3,1.94149]
[1732107308593,0.30171697,3090.4,3090.3,1.94149]
[1732107309169,0.30171697,3090.4,3090.2,1.94161]
[1732107309490,3.86344946,3090.7,3090.3,1.94155]
[1732107309699,0.54268022,3090.6,3090.4,1.94149]
[1732107309855,0.30148866,3090.5,3090.4,1.94149]
[1732107310412,0.30148866,3090.5,3090.4,2.72999]
[1732107310413,0.30145511,3090.5,3090.4,2.72999]
[1732107310626,0.48232818,3090.8,3090.7,1.9413]
[1732107310756,3.86321728,3091.2,3090.8,1.94119]
[1732107311077,3.86321728,3091.2,3090.4,0.7885]
[1732107311078,3.23531,3090.9,3090.4,0.7885]
[1732107311279,3.23557,3090.7,3090.1,4.67177]
[1732107311462,0.30133063,3090.6,3090.2,1.94161]
[1732107311877,3.23557,3090.7,3090.2,1.94161]
[1732107312080,0.30123653,3090.6,3090.2,1.94161]
[1732107312300,3.86288028,3090.8,3090.2,1.94157]
[1732107312449,0.54208346,3090.7,3090.4,1.94149]
[1732107312667,0.30115774,3090.6,3090.4,1.94149]
[1732107312869,3.8627344,3090.9,3090.4,1.94149]
[1732107313204,3.8627344,3090.9,3090.5,1.94139]
[1732107313205,0.54206157,3090.8,3090.5,1.94139]
[1732107313510,0.24091625,3090.8,3090.7,1.9413]
[1732107313716,0.30105574,3090.8,3090.7,1.9413]
[1732107314077,0.30105574,3091.0,3090.6,1.94132]
[1732107314282,0.48168918,3091.2,3090.8,1.94124]
[1732107314489,0.30093216,3091.1,3090.8,1.94124]
[1732107314706,0.30093216,3091.0,3090.8,1.94124]
[1732107314908,0.30093216,3091.0,3090.7,1.9413]
[1732107315111,6.6159691,3091.2,3090.7,1.9413]
[1732107315273,0.3008716,3091.1,3090.7,1.94125]
[1732107315473,0.3008716,3091.0,3090.7,1.94125]
[1732107315777,0.48139455,3091.2,3090.7,1.94125]
[1732107315996,0.30087212,3091.1,3090.7,1.94125]
[1732107316197,0.30087212,3091.0,3090.7,1.94125]
[1732107316497,4.13244985,3091.3,3090.8,1.94123]
[1732107316498,7.36733985,3091.3,3090.8,1.94123]
[1732107316696,7.36733985,3091.3,3090.6,0.7875]
[1732107316697,3.53586742,3091.2,3090.6,3.00171]
[1732107316908,3.23536,3090.9,3090.4,1.94148]
[1732107317118,0.7583,3091.3,3090.9,1.94114]
[1732107317278,0.30073402,3091.2,3091.0,0.194114]
[1732107317482,0.30073402,3091.2,3090.8,1.94119]
[1732107317681,3.71594945,3091.4,3090.8,1.94119]
[1732107317882,3.71594945,3091.4,3090.9,2.329416]
[1732107317883,0.30072717,3091.3,3090.9,2.329416]
[1732107318081,0.30072717,3091.2,3090.9,1.94117]
[1732107318320,0.30072717,3091.2,3091.0,0.194117]
[1732107318471,4.13884985,3091.6,3091.0,0.194117]
[1732107318669,0.7215374,3091.5,3091.0,1.94106]
[1732107318932,0.54115275,3091.4,3091.1,1.94104]
[1732107319117,0.3006407,3091.3,3091.1,1.94104]
[1732107319317,4.16374985,3091.9,3091.2,1.94094]
[1732107319485,0.30054362,3091.5,3090.9,0.755]
[1732107319686,0.48082897,3091.8,3091.4,1.94082]
[1732107319877,0.30052015,3091.7,3091.4,1.94082]
[1732107320080,0.7896,3091.9,3091.4,1.94082]
[1732107320298,0.30052156,3091.6,3091.5,1.9408]
[1732107320599,1.27039535,3091.9,3091.4,2.134902]
[1732107320600,0.7896,3091.9,3091.4,0.194082]
[1732107320830,0.30040789,3091.8,3091.4,1.94083]
[1732107321399,0.30040789,3091.8,3091.2,1.94096]
[1732107321747,0.30040789,3091.8,3090.9,0.755]
[1732107322052,0.30032857,3091.7,3091.4,3.88164]
[1732107322196,0.30032857,3091.8,3091.5,0.388164]
[1732107322392,0.7896,3091.9,3091.5,1.94075]
[1732107322637,0.48041898,3092.1,3091.5,1.94075]
[1732107322812,0.54046827,3092.0,3091.6,1.94073]
[1732107323009,0.30026015,3091.9,3091.6,1.94073]
[1732107323254,0.8248,3092.2,3091.6,0.469318]
[1732107323539,0.30023006,3092.1,3091.7,1.94067]
[1732107323906,0.30023006,3092.1,3091.8,1.9406]
[1732107324297,1.23614656,3092.4,3092.0,1.94049]
[1732107324496,0.1389165,3092.6,3092.1,1.94042]
[1732107324497,0.30021587,3092.3,3092.1,1.94042]
[1732107324701,3.3724965,3092.6,3092.1,1.94042]
[1732107324898,3.23364,3092.5,3092.0,1.94046]
[1732107325134,3.53382824,3092.5,3092.0,1.94046]
[1732107325309,3.23364,3092.5,3092.0,1.94046]
[1732107325512,0.1389165,3092.6,3092.0,2.72959]
[1732107325712,0.1389165,3092.6,3092.2,1.94032]
[1732107325713,0.30016055,3092.5,3092.2,1.94032]
[1732107326040,0.1389165,3092.6,3092.2,1.94031]
[1732107326254,0.1389165,3092.6,3092.1,0.4075012]
[1732107326255,0.30018394,3092.5,3092.4,1.94023]
[1732107326542,0.1389165,3092.6,3092.5,2.70117]
[1732107326714,0.1389165,3092.6,3092.4,1.94023]
[1732107326899,0.1389165,3092.6,3092.5,0.194023]
[1732107327093,0.1389165,3092.6,3092.5,2.134193]
[1732107327299,0.1389165,3092.6,3092.5,0.194023]
[1732107327523,0.1389165,3092.6,3092.3,1.94026]
[1732107328042,0.1389165,3092.6,3092.3,1.94025]
[1732107328348,0.1389165,3092.6,3092.4,1.94021]
[1732107328551,0.1389165,3092.6,3092.2,2.70132]
[1732107328705,0.1389165,3092.6,3092.4,1.94024]
[1732107329134,0.1389165,3092.6,3092.3,0.270132]
[1732107329445,0.1389165,3092.6,3092.3,2.210432]
[1732107330317,0.1389165,3092.6,3092.5,1.94017]
[1732107330553,0.1389165,3092.6,3092.3,2.210432]
[1732107330855,0.1389165,3092.6,3092.4,2.2373432]
[1732107332335,0.1389165,3092.6,3092.4,0.2971432]
[1732107332519,0.1389165,3092.6,3092.1,1.94039]
[1732107332714,4.02121,3092.5,3091.5,0.818]
[1732107332897,4.02121,3092.5,3091.9,1.9405]
[1732107333098,7.25491,3092.5,3091.8,1.94055]
[1732107333330,0.5402589,3092.4,3091.9,2.328619]
[1732107333514,7.25492,3092.5,3091.9,1.9405]
[1732107333845,0.54036405,3092.4,3092.0,1.94045]
[1732107334148,4.02114,3092.5,3092.0,1.94045]
[1732107334313,0.30020814,3092.3,3092.0,1.94045]
[1732107334517,0.7875,3092.5,3092.1,1.94041]
[1732107334723,0.54047111,3092.4,3092.1,1.94041]
[1732107334912,0.54047111,3092.4,3092.0,1.94045]
[1732107334913,0.7875,3092.5,3092.0,1.94045]
[1732107335106,0.54045364,3092.4,3092.1,0.21345]
[1732107335430,0.54045364,3092.3,3091.8,1.94057]
[1732107335633,0.54045364,3092.2,3091.8,1.94057]
[1732107335841,3.23411,3092.1,3091.8,0.42571889]
[1732107336039,0.1389165,3092.6,3091.2,0.7554]
[1732107336040,3.23438,3091.8,3091.2,2.69633]
[1732107336207,0.7953,3092.0,3091.2,0.7554]
[1732107336546,0.7953,3092.0,3090.9,0.7554]
[1732107336547,3.23488,3091.3,3090.9,0.7554]
[1732107336746,3.23475,3091.5,3090.9,2.99067894]
[1732107336959,3.23475,3091.5,3091.0,2.43424789]
[1732107337261,0.30051984,3091.4,3091.0,2.43424789]
[1732107337404,0.24050013,3091.4,3091.0,2.43424789]
[1732107337805,3.23453,3091.7,3091.2,1.94095]
[1732107338024,0.54109661,3091.6,3091.2,1.94095]
[1732107338229,0.54109661,3091.5,3091.3,0.03234308]
[1732107338426,0.3847765,3091.8,3091.3,2.17308688]
[1732107338724,0.54121467,3091.7,3091.3,0.23216688]
[1732107338983,0.54121467,3091.6,3091.4,0.21731169]
[1732107339149,3.23464,3091.6,3091.4,0.21731169]
[1732107339310,0.30076737,3091.5,3091.1,1.94103]
[1732107339636,0.38486763,3091.8,3091.2,1.94097]
[1732107339810,3.23462,3091.6,3091.2,0.3914385]
[1732107340010,0.30077475,3091.5,3091.1,1.94104]
[1732107340230,3.23462,3091.6,3091.1,1.94104]
[1732107340442,0.3008525,3091.5,3091.1,1.94104]
[1732107340657,0.3008525,3091.5,3091.2,0.3914455]
[1732107340806,3.23462,3091.6,3091.2,0.3914455]
[1732107340807,3.2348,3091.4,3091.2,0.3914455]
[1732107341002,3.2348,3091.4,3090.9,2.69652]
[1732107341255,3.2348,3091.4,3090.6,1.94133]
[1732107341256,3.235,3091.2,3090.6,2.76903]
[1732107341478,0.8048,3091.4,3090.3,0.8277]
[1732107341736,3.23558,3090.7,3090.1,1.94163]
[1732107341932,4.0174,3090.8,3090.1,1.94163]
[1732107342145,3.23567,3090.6,3090.0,0.771]
[1732107342455,3.23516,3091.1,3089.7,1.10040894]
[1732107342456,3.23624,3090.1,3089.7,1.10040894]
[1732107342656,3.23624,3090.1,3089.5,1.94202]
[1732107342657,3.23622,3090.1,3089.5,1.94202]
[1732107342806,0.7733,3090.2,3089.6,0.194202]
[1732107343010,0.7552,3090.1,3089.6,0.194202]
[1732107343267,3.23625,3090.0,3089.6,0.194202]
[1732107343470,3.9914,3090.1,3089.4,0.82953269]
[1732107343644,3.23642,3089.9,3089.4,0.82953269]
[1732107343950,3.23634,3090.0,3089.5,0.27717027]
[1732107344308,0.762,3090.6,3089.5,0.27717027]
[1732107344507,3.23599,3090.3,3089.7,1.94189]
[1732107344708,3.23599,3090.3,3089.6,0.02523023]
[1732107344709,3.23608,3090.2,3089.6,0.02523023]
[1732107344909,3.23599,3090.3,3089.6,0.02523023]
[1732107345151,3.23605,3090.2,3089.7,0.19672802]
[1732107345716,2.95108939,3091.1,3089.7,0.19672802]
[1732107345717,3.23583,3090.4,3089.8,2.70763]
[1732107346025,3.53678064,3090.3,3089.8,0.7981581]
[1732107346238,3.23603,3090.2,3089.8,1.11375883]
[1732107346428,0.7608,3090.3,3089.8,1.11375883]
[1732107346640,3.99673,3090.3,3089.8,1.11375883]
[1732107347470,3.23641,3089.9,3089.6,0.55]
[1732107347679,3.23657,3089.7,3089.3,0.7658]
[1732107347826,3.23666,3089.7,3089.3,1.036604]
[1732107348019,3.23653,3089.8,3089.3,0.7658]
[1732107348228,3.23637,3089.9,3089.3,2.70793]
[1732107348449,3.23615,3090.1,3089.5,1.942]
[1732107348655,3.2363,3090.0,3089.3,4.99521466]
[1732107348868,3.23635,3089.9,3089.4,1.94207]
[1732107349065,3.23579,3090.5,3089.6,1.94199]
[1732107349229,3.53617781,3090.4,3089.8,1.94182]
[1732107349422,0.7919,3090.7,3089.6,0.37485894]
[1732107349423,3.23626,3090.0,3089.6,0.37485894]
[1732107349731,3.23626,3090.0,3089.6,0.55]
[1732107350041,3.23595,3090.3,3089.8,1.94183]
[1732107350302,3.23608,3090.2,3089.8,0.249183]
[1732107350481,3.23638,3089.9,3089.2,2.69611]
[1732107350686,3.23658,3089.7,3089.2,2.69614]
[1732107351208,3.23667,3089.6,3089.2,0.7539]
[1732107351417,3.23697,3089.3,3088.9,0.8112]
[1732107351919,3.23678,3089.5,3088.9,0.8112]
[1732107352097,3.23689,3089.4,3088.9,0.8112]
[1732107352295,3.23703,3089.3,3088.9,0.8112]
[1732107352496,3.23703,3089.3,3088.9,1.1059969]
[1732107352698,3.23682,3089.5,3088.9,3.0483969]
[1732107353063,3.23672,3089.6,3088.9,1.1059969]
[1732107353298,3.23648,3089.8,3089.2,1.94224]
[1732107353481,6.47302,3089.8,3089.2,1.94221]
[1732107353662,3.23648,3089.8,3089.2,1.94218]
[1732107354009,3.2366,3089.7,3089.2,0.388449]
[1732107354162,3.2366,3089.7,3089.2,2.330689]
[1732107354368,3.23651,3089.8,3089.2,0.388449]
[1732107354563,3.23677,3089.5,3089.2,0.388449]
[1732107354811,3.23645,3089.8,3089.2,0.388449]
[1732107354812,3.23651,3089.8,3089.2,1.9422]
[1732107355116,4.04894,3089.9,3089.2,1.9422]
[1732107355412,4.04887,3089.9,3089.2,2.330654]
[1732107355566,3.23637,3089.9,3089.4,1.9421]
[1732107355772,3.23666,3089.6,3089.1,1.94227]
[1732107356009,4.04144,3089.8,3089.2,1.94224]
[1732107356164,0.8049,3089.8,3089.2,0.7932]
[1732107356362,3.23658,3089.7,3089.2,3.008975]
[1732107356905,0.8049,3089.8,3089.2,3.008975]
[1732107356906,0.8049,3089.8,3089.3,1.94215]
[1732107357114,0.8049,3089.8,3089.3,2.4372645]
[1732107357315,4.04145,3089.8,3089.3,0.4951145]
[1732107357664,4.04049,3090.1,3089.3,0.4951145]
[1732107357934,4.04049,3090.1,3089.6,1.94199]
[1732107358386,4.04049,3090.1,3089.4,1.94207]
[1732107358710,4.04049,3090.1,3089.7,1.94193]
[1732107358711,0.8043,3090.1,3089.7,1.94193]
[1732107359033,0.7609,3090.4,3089.8,1.94186]
[1732107359167,3.23605,3090.2,3089.7,1.94192]
[1732107359608,3.23602,3090.3,3089.5,2.136227]
[1732107359817,3.23615,3090.1,3089.6,2.1556127]
[1732107360307,0.7609,3090.4,3089.8,1.94182]
[1732107360308,3.99679,3090.4,3089.8,1.94182]
[1732107360518,3.23612,3090.2,3089.9,0.194182]
[1732107360663,3.23612,3090.2,3089.6,1.94194]
[1732107360664,3.23593,3090.3,3089.6,1.94198]
[1732107360864,3.23661,3089.7,3089.0,0.7974]
[1732107361118,0.7736,3090.0,3089.0,3.92400747]
[1732107361269,3.2359,3090.4,3089.7,1.9419]
[1732107361468,3.2359,3090.4,3089.8,2.13606]
[1732107361710,3.23566,3090.6,3090.0,1.94169]
[1732107361913,3.23559,3090.7,3090.1,1.94168]
[1732107362152,0.30007474,3090.6,3090.1,1.94168]
[1732107362335,0.30007474,3090.6,3090.1,3.88332]
[1732107362540,0.30007474,3090.6,3090.3,1.9415]
[1732107362878,4.02187,3091.1,3090.5,1.94138]
[1732107363075,0.30025735,3091.0,3090.6,2.135458]
[1732107363283,0.30025735,3091.0,3090.7,1.94126]
[1732107363432,3.23483,3091.4,3090.7,1.94126]
[1732107363433,3.53540099,3091.2,3090.7,0.8246]
[1732107363941,0.30040099,3091.1,3090.8,1.94122]
[1732107364144,4.02153,3091.4,3090.7,1.101192]
[1732107364345,3.53551971,3091.3,3090.7,1.101192]
[1732107364585,0.7867,3091.4,3090.1,0.4096919]
[1732107364586,0.30056971,3091.2,3090.4,2.73417]
[1732107364876,0.8223,3090.8,3090.4,1.94149]
[1732107365030,0.30056971,3090.7,3090.3,1.94154]
[1732107365232,0.8223,3091.1,3090.4,1.94146]
[1732107365433,3.53602477,3091.0,3090.5,2.135566]
[1732107365634,0.8223,3091.1,3090.5,1.94142]
[1732107365635,0.30082477,3090.9,3090.5,1.94142]
[1732107365877,4.05742,3091.1,3090.3,1.94152]
[1732107366094,4.05742,3091.1,3090.4,0.249152]
[1732107366095,0.30082838,3091.0,3090.4,0.249152]
[1732107366236,4.05742,3091.1,3090.4,0.249152]
[1732107366237,3.53613838,3090.9,3090.4,1.94148]
[1732107366436,0.30082838,3090.8,3090.4,1.94148]
[1732107366666,3.23531,3090.9,3090.4,1.94148]
[1732107366667,0.30082838,3090.7,3090.4,1.94148]
[1732107366877,4.05742,3091.1,3090.5,1.94141]
[1732107367188,0.30098466,3091.0,3090.6,1.94136]
[1732107367338,0.30104776,3090.9,3090.6,1.94136]
[1732107367538,0.30104776,3090.8,3090.7,1.94129]
[1732107367739,0.30104776,3090.8,3090.7,2.71949]
[1732107367938,3.23491,3091.3,3090.7,2.71949]
[1732107368255,0.30102572,3091.2,3090.7,2.71946]
[1732107368579,3.23483,3091.4,3090.9,1.94117]
[1732107368785,3.23483,3091.4,3090.7,2.71946]
[1732107368786,6.46969,3091.4,3090.8,1.94122]
[1732107368955,0.7707,3091.5,3090.9,1.94118]
[1732107369142,0.30109131,3091.4,3091.0,1.94111]
[1732107369337,0.7707,3091.5,3091.0,1.94111]
[1732107369566,0.30114616,3091.4,3091.0,1.94111]
[1732107369768,0.30114616,3091.3,3091.0,0.41865869]
[1732107369986,3.23448,3091.7,3091.2,1.94099]
[1732107370343,3.23448,3091.7,3091.0,1.94111]
[1732107370556,0.30126477,3091.6,3091.1,1.94099]
[1732107370769,3.23448,3091.7,3091.2,1.94099]
[1732107370968,3.23448,3091.7,3091.0,1.94107]
[1732107371169,0.3011901,3091.5,3091.0,1.94106]
[1732107371389,0.3011901,3091.4,3091.1,1.94104]
[1732107371604,4.04952,3091.8,3091.3,1.94089]
[1732107371891,0.30118506,3091.7,3091.3,1.94089]
[1732107372070,0.30118506,3091.6,3091.3,1.94089]
[1732107372268,4.04952,3091.8,3091.3,1.94089]
[1732107372269,0.30118506,3091.5,3091.3,1.94089]
[1732107372582,4.04952,3091.8,3091.1,2.32923]
[1732107372583,0.30118506,3091.4,3091.1,2.32923]
[1732107372912,3.23447,3091.7,3091.2,1.94094]
[1732107373052,4.04947,3091.8,3091.1,1.94102]
[1732107373389,3.23465,3091.6,3091.0,1.94107]
[1732107373593,0.8151,3091.8,3090.9,1.94114]
[1732107373594,3.53584175,3091.5,3090.9,1.94114]
[1732107373755,3.53589175,3091.4,3090.9,1.94114]
[1732107373942,0.30111175,3091.3,3090.9,1.94114]
[1732107374147,3.2346,3091.6,3091.1,1.94101]
[1732107374372,0.30094117,3091.5,3091.1,1.94101]
[1732107374567,0.30094117,3091.4,3091.1,1.94101]
[1732107374774,3.23485,3091.4,3090.9,1.94114]
[1732107374967,0.7787,3091.2,3090.7,2.71946]
[1732107375482,0.7787,3091.2,3090.8,1.9412]
[1732107377179,3.23525,3091.0,3090.7,0.7782]
[1732107377403,3.23525,3091.0,3090.4,2.76028]
[1732107377556,3.23525,3091.0,3090.3,1.94151]
[1732107377557,3.23532,3090.9,3090.3,1.94151]
[1732107377763,3.23541,3090.8,3090.3,1.94151]
[1732107377967,3.23527,3091.0,3090.4,1.94148]
[1732107378140,0.7787,3091.2,3090.6,1.94134]
[1732107378141,4.01374,3091.2,3090.6,1.94134]
[1732107378340,3.23528,3091.0,3090.4,1.97373449]
[1732107378583,3.23528,3091.0,3090.4,1.94144]
[1732107378886,4.415114,3091.2,3090.6,1.94136]
[1732107379042,0.7787,3091.2,3090.3,0.03235166]
[1732107379237,0.30090773,3091.1,3090.6,1.94134]
[1732107379492,0.30090773,3091.1,3090.4,1.97384131]
[1732107379778,3.53611773,3091.0,3090.5,1.94142]
[1732107379980,3.23521,3091.0,3090.5,1.94142]
[1732107380359,3.23544,3090.8,3090.3,1.94155]
[1732107380536,3.23544,3090.8,3090.2,1.97393131]
[1732107380537,3.23521,3091.0,3090.4,1.94145]
[1732107380742,6.47051,3091.0,3090.4,2.37056361]
[1732107381041,6.47051,3091.0,3090.4,1.94145]
[1732107381240,0.30097364,3090.9,3090.4,1.94145]
[1732107381437,3.53627364,3090.9,3090.4,1.94145]
[1732107381685,3.2353,3090.9,3090.4,1.94145]
[1732107381889,4.01375,3091.2,3090.4,1.94145]
[1732107382099,4.415125,3091.2,3090.5,1.94141]
[1732107382267,0.30096165,3091.1,3090.5,1.94141]
[1732107382465,0.30096165,3091.0,3090.6,1.94136]
[1732107382799,0.7787,3091.2,3090.8,1.94121]
[1732107382961,7.25584,3091.4,3090.8,1.94121]
[1732107383155,4.02099,3091.4,3090.8,1.94121]
[1732107383454,3.23489,3091.3,3090.8,1.94121]
[1732107383972,0.30120689,3091.2,3090.8,1.94121]
[1732107384172,0.30120689,3091.1,3090.8,1.94121]
[1732107384374,3.23489,3091.3,3090.8,1.94121]
[1732107384714,0.30131359,3091.2,3090.8,1.94121]
[1732107384870,0.7862,3091.4,3090.8,1.94121]
[1732107385078,4.02102,3091.4,3090.6,0.81605035]
[1732107385397,0.60272393,3091.3,3090.7,1.9413]
[1732107385579,0.60272393,3091.3,3090.6,0.81605035]
[1732107385580,0.301415,3091.2,3091.0,1.94105]
[1732107385758,0.301415,3091.2,3091.1,1.94105]
[1732107385963,0.301415,3091.2,3091.1,2.71045]
[1732107386290,3.23458,3091.6,3091.1,0.7694]
[1732107386462,3.23478,3091.4,3090.9,0.7694]
[1732107386811,0.30146681,3091.3,3091.1,1.94104]
[1732107387100,3.23457,3091.6,3091.1,1.94104]
[1732107387406,0.30160505,3091.5,3091.1,1.94104]
[1732107387561,0.30160505,3091.4,3091.1,1.94104]
[1732107387762,0.30160473,3091.3,3091.1,1.94104]
[1732107388105,3.23479,3091.4,3090.9,2.71054]
[1732107388309,0.30174377,3091.2,3090.9,2.981594]
[1732107388458,0.30174377,3091.3,3090.9,2.981594]
[1732107388790,0.30174728,3091.2,3090.9,2.981594]
[1732107388978,3.23475,3091.5,3090.9,2.71054]
[1732107389162,0.30175014,3091.4,3091.0,1.94111]
[1732107389364,0.30175014,3091.3,3091.1,1.94104]
[1732107389607,0.30175014,3091.2,3091.1,1.94104]
[1732107390195,3.2346,3091.6,3091.1,1.94104]
[1732107390399,0.30183617,3091.5,3091.1,1.94104]
[1732107390610,3.53661617,3091.4,3090.9,2.71054]
[1732107390775,0.30183617,3091.3,3090.9,2.71054]
[1732107391103,0.30183617,3091.2,3090.9,2.71054]
[1732107391315,0.30183617,3091.2,3091.0,1.94111]
[1732107391493,3.23464,3091.6,3091.0,1.94111]
[1732107391664,0.30197083,3091.5,3091.0,0.271051]
[1732107391880,0.30197083,3091.4,3091.0,1.97342725]
[1732107392115,0.30197083,3091.3,3091.2,1.94095]
[1732107392323,3.23445,3091.8,3091.3,1.94092]
[1732107392475,0.8149,3091.9,3091.4,1.9408]
[1732107392476,0.30204318,3091.7,3091.4,1.9408]
[1732107392678,0.30204318,3091.6,3091.4,1.9408]
[1732107393020,0.30204318,3091.5,3091.4,1.9408]
[1732107393169,0.30204318,3091.5,3091.1,1.97335376]
[1732107393374,0.30204318,3091.4,3091.2,2.13826538]
[1732107393576,3.23437,3091.8,3091.2,0.19733538]
[1732107393803,0.30202936,3091.7,3091.3,1.94092]
[1732107394025,0.30202936,3091.6,3091.3,1.94092]
[1732107394218,0.30202936,3091.5,3091.3,1.94092]
[1732107394374,0.30202936,3091.4,3091.3,1.94092]
[1732107395219,0.30202936,3091.4,3091.3,2.329111]
[1732107395794,0.30202936,3091.4,3091.3,3.157411]
[1732107396215,3.2342,3092.0,3091.3,3.157411]
[1732107396216,3.2342,3092.0,3091.5,1.94074]
[1732107396378,0.30201498,3091.9,3091.5,1.94074]
[1732107396577,0.30201498,3091.8,3091.7,1.94067]
[1732107398115,3.23382,3092.4,3091.7,1.94067]
[1732107398318,0.30187099,3092.3,3091.8,0.03233963]
[1732107398617,0.30187099,3092.2,3092.1,1.94042]
[1732107398833,0.30187099,3092.2,3091.8,2.73320963]
[1732107398980,0.30187099,3092.2,3092.0,3.88094]
[1732107399181,0.30187099,3092.1,3092.0,1.94047]
[1732107399516,0.54329645,3092.1,3092.0,1.94047]
[1732107400487,0.54329645,3092.1,3091.8,0.7603]
[1732107400701,0.30187099,3092.0,3091.7,1.94063]
[1732107400906,6.46776,3092.3,3091.7,1.94063]
[1732107401090,0.5430731,3092.2,3091.7,1.94063]
[1732107401292,0.5430731,3092.1,3091.7,1.94063]
[1732107401486,0.30170728,3092.0,3091.8,1.94058]
[1732107401692,0.30170728,3091.9,3091.8,1.94058]
[1732107401920,3.23387,3092.3,3091.8,1.94058]
[1732107402193,0.54295722,3092.2,3091.8,1.94058]
[1732107402389,0.30164283,3092.1,3091.8,1.94058]
[1732107402703,3.23411,3092.1,3091.6,1.94073]
[1732107402912,0.24127313,3092.0,3091.6,1.94073]
[1732107403124,0.8444627,3092.0,3091.7,1.94067]
[1732107403439,0.30160161,3091.9,3091.7,1.94067]
[1732107403815,0.30160161,3091.8,3091.7,1.94067]
[1732107404198,0.54286109,3092.0,3091.9,1.94055]
[1732107405745,0.1389165,3092.6,3092.1,1.94038]
[1732107405909,0.54251419,3092.5,3092.1,1.94038]
[1732107406234,0.1389165,3092.6,3092.1,1.94038]
[1732107406443,0.24111122,3092.4,3092.1,1.94038]
[1732107406625,0.30138903,3092.3,3092.2,1.94035]
[1732107407012,0.1389165,3092.6,3092.2,1.94035]
[1732107407213,0.30129429,3092.5,3092.1,1.94038]
[1732107407411,0.7951,3092.3,3091.3,1.94089]
[1732107407731,3.77629224,3092.2,3091.5,1.94077]
[1732107408054,0.54235224,3092.1,3091.6,2.210427]
[1732107408256,0.30129429,3092.0,3091.6,1.9407]
[1732107408412,4.02894,3092.3,3091.8,1.9406]
[1732107408748,0.54243496,3092.2,3091.8,1.94058]
[1732107408937,0.30135293,3092.1,3091.8,1.94058]
[1732107409135,0.7951,3092.3,3091.8,1.94058]
[1732107409334,0.7951,3092.3,3091.7,1.94067]
[1732107409335,0.54248272,3092.2,3091.9,1.94054]
[1732107409642,0.7951,3092.3,3091.9,1.94054]
[1732107409643,0.30137929,3092.1,3091.9,1.94054]
[1732107409851,0.7951,3092.3,3092.0,1.94047]
[1732107410057,4.1696478,3092.5,3091.9,0.194054]
[1732107410257,4.1696478,3092.5,3091.5,0.0322218]
[1732107410258,0.24110202,3092.2,3092.0,1.94045]
[1732107410462,4.1696478,3092.5,3092.0,1.94045]
[1732107410681,0.54255996,3092.4,3092.0,3.88089]
[1732107410977,0.54255723,3092.3,3092.0,1.94044]
[1732107411130,0.3014222,3092.2,3092.0,1.94044]
[1732107411329,7.4033578,3092.5,3092.0,1.94044]
[1732107411527,0.5426798,3092.4,3092.0,1.94044]
[1732107411845,0.5426798,3092.3,3092.0,1.94044]
[1732107412043,0.30148878,3092.2,3092.0,1.94044]
[1732107412239,4.1696478,3092.5,3092.1,1.94038]
[1732107412484,0.54279831,3092.4,3092.1,1.94038]
[1732107412768,0.54279831,3092.3,3091.9,0.7565]
[1732107412967,0.54279831,3092.2,3091.9,2.697]
[1732107413172,0.30155455,3092.1,3091.9,0.7565]
[1732107413329,4.1696478,3092.5,3092.0,1.94049]
[1732107413530,0.7951,3092.5,3091.9,0.7565]
[1732107413731,3.23394,3092.2,3091.8,1.94058]
[1732107413929,0.30160193,3092.1,3091.8,2.407478]
[1732107414131,0.30160193,3092.0,3091.7,2.72836]
[1732107414330,3.23394,3092.2,3091.7,1.94066]
[1732107414568,0.54304833,3092.1,3091.7,1.94066]
[1732107414772,0.30169351,3092.0,3091.7,1.94066]
[1732107414979,3.23405,3092.1,3091.5,3.28559]
[1732107415162,0.54307239,3092.0,3091.6,1.94074]
[1732107415361,0.30170688,3092.0,3091.6,1.94074]
[1732107415556,3.23405,3092.1,3091.6,1.94074]
[1732107415557,0.30170688,3091.9,3091.6,1.94074]
[1732107415757,3.23405,3092.1,3091.6,1.94074]
[1732107415962,0.54322945,3092.0,3091.6,1.94071]
[1732107416275,0.30179414,3091.9,3091.6,1.94071]
[1732107416464,0.30179414,3091.9,3091.7,1.94066]
[1732107416674,3.23397,3092.2,3091.7,1.94066]
[1732107416834,0.54324677,3092.1,3091.7,1.94066]
[1732107417181,0.3018035,3092.0,3091.7,1.94066]
[1732107417478,6.46798,3092.2,3091.7,1.94066]
[1732107417686,0.54330854,3092.1,3091.7,1.94066]
[1732107417863,6.46798,3092.2,3091.7,1.94066]
[1732107418068,0.3018379,3092.0,3091.7,1.94066]
[1732107418270,0.3018379,3092.0,3091.9,1.94055]
[1732107418563,3.23381,3092.4,3091.9,1.94055]
[1732107418729,0.54339509,3092.3,3091.9,1.94055]
[1732107418934,0.54339509,3092.2,3091.7,2.4356001]
[1732107419278,0.54339509,3092.1,3091.8,0.27091511]